[Event "46th GER-ch Rapid 2020"]
[Site "Plochingen"]
[Date "2020.09.20"]
[Round "8.8"]
[White "Muranyi, Karl-Jasmin"]
[Black "Petkidis, Anthony"]
[Result "1-0"]
[ECO "A45"]
[WhiteElo "2331"]
[BlackElo "2406"]
[Annotator "ChessBase"]
[PlyCount "145"]
[EventDate "2020.09.19"]
[EventType "swiss"]
[EventCountry "GER"]
[SourceTitle "playchess.com"]
[Source "ChessBase"]
[SourceQuality "1"]
[TimeControl "900+10"]

1. d4 {[%emt 0:00:00]} Nf6 {[%emt 0:00:00]} 2. c3 {[%emt 0:00:00]} b6 {[%emt 0:00:03]} 3. Bf4 {[%emt 0:00:00]} Bb7 {[%emt 0:00:02]} 4. Nd2 {[%emt 0:00:00]} e6 {[%emt 0:00:15]} 5. e3 {[%emt 0:00:01]} Be7 {[%emt 0:00:04]} 6. h3 {[%emt 0:00:02]} O-O {[%emt 0:00:09]} 7. Ngf3 {[%emt 0:00:02]} c5 {[%emt 0:00:04]} 8. Be2 {[%emt 0:00:03]} d6 {[%emt 0:00:08]} 9. O-O {[%emt 0:00:03]} Nbd7 {[%emt 0:00:12]} 10. a4 {[%emt 0:00:03]} a6 {[%emt 0:00:06]} 11. Bh2 {[%emt 0:00:02]} Ne4 {[%emt 0:00:32]} 12. Nxe4 {[%emt 0:00:22]} Bxe4 {[%emt 0:00:02]} 13. Nd2 {[%emt 0:00:02]} Bc6 {[%emt 0:00:41]} 14. Bd3 {[%emt 0:00:50]} b5 {[%emt 0:01:05]} 15. axb5 {[%emt 0:00:05]} axb5 {[%emt 0:00:02]} 16. Qe2 {[%emt 0:00:01]} Qb6 {[%emt 0:00:25]} 17. Bg3 {[%emt 0:00:12]} d5 {[%emt 0:01:14]} 18. f4 {[%emt 0:00:17]} f5 {[%emt 0:01:20]} 19. Nf3 {[%emt 0:00:10]} c4 {[%emt 0:00:31]} 20. Bc2 {[%emt 0:00:06]} b4 {[%emt 0:00:05]} 21. Rfb1 {[%emt 0:01:10]} Rxa1 {[%emt 0:04:23]} 22. Rxa1 {[%emt 0:00:01]} b3 {[%emt 0:00:38]} 23. Bd1 {[%emt 0:00:08]} Ra8 {[%emt 0:00:14]} 24. Rb1 {[%emt 0:00:22]} Ra2 {[%emt 0:00:10]} 25. Qd2 {[%emt 0:00:07]} Nf6 {[%emt 0:00:50]} 26. Bh4 {[%emt 0:00:27]} Ne4 {[%emt 0:00:13]} 27. Qe1 {[%emt 0:00:01]} Bf8 {[%emt 0:01:03]} 28. Ng5 {[%emt 0:00:26]} Bb7 {[%emt 0:01:09]} 29. Nxe4 {[%emt 0:00:05]} dxe4 {[%emt 0:00:02]} 30. g4 {[%emt 0:00:42]} Bd5 {[%emt 0:00:12]} 31. Be2 {[%emt 0:00:44]} Qa5 {[%emt 0:00:27]} 32. Qf1 {[%emt 0:00:38]} Qa4 {[%emt 0:00:37]} 33. Kf2 {[%emt 0:01:18]} Kf7 {[%emt 0:00:06]} 34. Qg1 {[%emt 0:00:59]} Qd7 {[%emt 0:00:25]} 35. gxf5 {[%emt 0:00:42]} exf5 {[%emt 0:00:02]} 36. Qg5 {[%emt 0:00:01]} h6 {[%emt 0:01:17]} 37. Qg1 {[%emt 0:01:36]} Be7 {[%emt 0:00:21]} 38. Bxe7 {[%emt 0:00:21]} Qxe7 {[%emt 0:00:01]} 39. Qg3 {[%emt 0:00:01]} Qf6 {[%emt 0:00:21]} 40. h4 {[%emt 0:00:09]} Kf8 {[%emt 0:00:30]} 41. Kg2 {[%emt 0:00:12]} Qa6 {[%emt 0:00:22]} 42. Qe1 {[%emt 0:00:31]} g6 {[%emt 0:00:16]} 43. Kh3 {[%emt 0:00:16]} Kf7 {[%emt 0:00:21]} 44. Qg1 {[%emt 0:00:08]} Qf6 {[%emt 0:00:07]} 45. Qf1 {[%emt 0:00:41]} Qe6 {[%emt 0:00:04]} 46. Qg1 {[%emt 0:00:28]} Qf6 {[%emt 0:00:05]} 47. Qg3 {[%emt 0:00:09]} Ke7 {[%emt 0:00:24]} 48. h5 {[%emt 0:00:39]} gxh5 {[%emt 0:00:03]} 49. Bxh5 {[%emt 0:00:11]} Ra8 {[%emt 0:00:11]} 50. Rg1 {[%emt 0:00:18]} Rg8 {[%emt 0:00:06]} 51. Qe1 {[%emt 0:00:01]} Rxg1 {[%emt 0:00:29]} 52. Qxg1 {[%emt 0:00:01]} Bf7 {[%emt 0:00:04]} 53. Be2 {[%emt 0:00:58]} Qa6 {[%emt 0:00:27]} 54. Qe1 {[%emt 0:03:38]} Kf8 {[%emt 0:00:22]} 55. Qd1 {[%emt 0:00:21]} Qa2 {[%emt 0:00:06]} 56. Qc1 {[%emt 0:00:01]} Ke7 {[%emt 0:00:05]} 57. Kg3 {[%emt 0:00:15]} Qa6 {[%emt 0:00:10]} 58. Qh1 {[%emt 0:00:13]} Kf8 {[%emt 0:00:27]} 59. Kf2 {[%emt 0:00:36]} Qf6 {[%emt 0:00:13]} 60. Qh3 {[%emt 0:00:59]} Kg7 {[%emt 0:00:07]} 61. Bh5 {[%emt 0:00:17]} Be6 {[%emt 0:00:17]} 62. Qg3+ {[%emt 0:00:07]} Kh7 {[%emt 0:00:01]} 63. Kg2 {[%emt 0:00:09]} Bf7 {[%emt 0:00:09]} 64. Bxf7 {[%emt 0:00:09]} Qxf7 {[%emt 0:00:02]} 65. Qh4 {[%emt 0:00:05]} Qg6+ {[%emt 0:00:12]} 66. Kf2 {[%emt 0:00:03]} Qg4 {[%emt 0:00:19]} 67. Qxg4 {[%emt 0:00:21]} fxg4 {[%emt 0:00:01]} 68. Kg3 {[%emt 0:00:01]} h5 {[%emt 0:00:01]} 69. f5 {[%emt 0:00:09]} Kg7 {[%emt 0:00:03]} 70. d5 {[%emt 0:00:06]} Kf6 {[%emt 0:00:36]} 71. d6 {[%emt 0:00:02]} Kf7 {[%emt 0:00:03]} 72. Kf4 {[%emt 0:00:01]} Ke8 {[%emt 0:00:28]} 73. f6 {[%emt 0:00:09]} 1-0

[Event "46th GER-ch Rapid 2020"]
[Site "Plochingen"]
[Date "2020.09.20"]
[Round "8.9"]
[White "Schwarz, Frank"]
[Black "Schmaltz, Roland"]
[Result "0-1"]
[ECO "A36"]
[WhiteElo "2231"]
[BlackElo "2449"]
[Annotator "ChessBase"]
[PlyCount "140"]
[EventDate "2020.09.19"]
[EventType "swiss"]
[EventCountry "GER"]
[SourceTitle "playchess.com"]
[Source "ChessBase"]
[SourceQuality "1"]
[TimeControl "900+10"]

1. c4 {[%emt 0:00:00]} g6 {[%emt 0:00:00]} 2. g3 {[%emt 0:00:00]} Bg7 {[%emt 0:00:00]} 3. Bg2 {[%emt 0:00:00]} c5 {[%emt 0:00:00]} 4. Nc3 {[%emt 0:00:13]} Nc6 {[%emt 0:00:00]} 5. e3 {[%emt 0:00:04]} e6 {[%emt 0:01:01]} 6. Nge2 {[%emt 0:01:00]} Nge7 {[%emt 0:00:05]} 7. O-O {[%emt 0:00:31]} O-O {[%emt 0:01:05]} 8. a3 {[%emt 0:00:34]} d6 {[%emt 0:00:22]} 9. Rb1 {[%emt 0:00:53]} b6 {[%emt 0:00:44]} 10. d3 {[%emt 0:00:22]} Bb7 {[%emt 0:00:06]} 11. b4 {[%emt 0:01:02]} Qd7 {[%emt 0:00:14]} 12. b5 {[%emt 0:01:09]} Na5 {[%emt 0:00:42]} 13. e4 {[%emt 0:00:53]} d5 {[%emt 0:00:17]} 14. cxd5 {[%emt 0:00:10]} exd5 {[%emt 0:00:03]} 15. Bg5 {[%emt 0:01:11]} d4 {[%emt 0:01:06]} 16. Bxe7 {[%emt 0:00:46]} Qxe7 {[%emt 0:00:02]} 17. Nd5 {[%emt 0:00:02]} Bxd5 {[%emt 0:01:23]} 18. exd5 {[%emt 0:00:02]} Rae8 {[%emt 0:00:07]} 19. Re1 {[%emt 0:00:36]} Qd7 {[%emt 0:01:10]} 20. Nf4 {[%emt 0:01:21]} Rxe1+ {[%emt 0:00:41]} 21. Qxe1 {[%emt 0:00:01]} Re8 {[%emt 0:00:09]} 22. Qd1 {[%emt 0:00:02]} Bh6 {[%emt 0:01:30]} 23. Qf3 {[%emt 0:00:47]} Qd6 {[%emt 0:00:08]} 24. Ne2 {[%emt 0:01:32]} Qe5 {[%emt 0:00:08]} 25. Bf1 {[%emt 0:00:41]} Nb7 {[%emt 0:01:24]} 26. h4 {[%emt 0:00:11]} Re7 {[%emt 0:00:15]} 27. g4 {[%emt 0:00:35]} Nd6 {[%emt 0:00:28]} 28. a4 {[%emt 0:00:13]} Ne8 {[%emt 0:02:29]} 29. Rb2 {[%emt 0:00:37]} Nc7 {[%emt 0:00:38]} 30. Bg2 {[%emt 0:00:09]} Ne8 {[%emt 0:00:24]} 31. Ng3 {[%emt 0:01:08]} Qe1+ {[%emt 0:00:23]} 32. Kh2 {[%emt 0:00:03]} Nd6 {[%emt 0:00:11]} 33. Qf6 {[%emt 0:01:48]} Qe5 {[%emt 0:00:36]} 34. Qxe5 {[%emt 0:00:15]} Rxe5 {[%emt 0:00:01]} 35. g5 {[%emt 0:00:19]} Bg7 {[%emt 0:00:12]} 36. Ne4 {[%emt 0:00:13]} Nxe4 {[%emt 0:00:23]} 37. Bxe4 {[%emt 0:00:02]} c4 {[%emt 0:00:18]} 38. d6 {[%emt 0:00:53]} c3 {[%emt 0:00:21]} 39. Rb4 {[%emt 0:00:16]} Re6 {[%emt 0:00:08]} 40. d7 {[%emt 0:00:06]} Rd6 {[%emt 0:00:01]} 41. Bc6 {[%emt 0:00:04]} Be5+ {[%emt 0:00:06]} 42. Kg2 {[%emt 0:00:02]} Kf8 {[%emt 0:00:03]} 43. Kf3 {[%emt 0:00:06]} Ke7 {[%emt 0:00:05]} 44. Ke4 {[%emt 0:00:02]} Bg7 {[%emt 0:00:01]} 45. Rc4 {[%emt 0:00:37]} f5+ {[%emt 0:00:07]} 46. gxf6+ {[%emt 0:00:15]} Bxf6 {[%emt 0:00:03]} 47. a5 {[%emt 0:00:15]} Bxh4 {[%emt 0:00:21]} 48. axb6 {[%emt 0:00:01]} axb6 {[%emt 0:00:01]} 49. Ra4 {[%emt 0:00:02]} Bf6 {[%emt 0:00:12]} 50. Ra8 {[%emt 0:00:16]} Re6+ {[%emt 0:00:15]} 51. Kf3 {[%emt 0:00:35]} Rd6 {[%emt 0:00:03]} 52. Re8+ {[%emt 0:00:09]} Kf7 {[%emt 0:00:01]} 53. Re2 {[%emt 0:00:01]} h5 {[%emt 0:00:05]} 54. Kf4 {[%emt 0:00:30]} Bd8 {[%emt 0:00:26]} 55. Re8 {[%emt 0:00:19]} Bc7 {[%emt 0:00:26]} 56. Kf3 {[%emt 0:00:05]} g5 {[%emt 0:00:57]} 57. Re2 {[%emt 0:00:14]} g4+ {[%emt 0:00:10]} 58. Kg2 {[%emt 0:00:01]} h4 {[%emt 0:00:06]} 59. Re4 {[%emt 0:00:22]} h3+ {[%emt 0:00:09]} 60. Kg1 {[%emt 0:00:04]} Bd8 {[%emt 0:00:20]} 61. Rf4+ {[%emt 0:00:11]} Ke7 {[%emt 0:00:08]} 62. Re4+ {[%emt 0:00:03]} Kf6 {[%emt 0:00:02]} 63. Kh2 {[%emt 0:00:21]} Bc7 {[%emt 0:00:22]} 64. Kg1 {[%emt 0:00:01]} Kf5 {[%emt 0:00:02]} 65. Re2 {[%emt 0:00:08]} Bd8 {[%emt 0:00:04]} 66. Be4+ {[%emt 0:00:12]} Kg5 {[%emt 0:00:18]} 67. Bc6 {[%emt 0:00:03]} Kh4 {[%emt 0:00:05]} 68. Re8 {[%emt 0:00:29]} c2 {[%emt 0:00:07]} 69. Rh8+ {[%emt 0:00:09]} Kg5 {[%emt 0:00:04]} 70. Rg8+ {[%emt 0:00:02]} Kf6 {[%emt 0:00:06]} 0-1

[Event "46th GER-ch Rapid 2020"]
[Site "Plochingen"]
[Date "2020.09.20"]
[Round "8.10"]
[White "Schenderowitsch, Michael"]
[Black "Gschnitzer, Oswald"]
[Result "1/2-1/2"]
[ECO "E18"]
[WhiteElo "2346"]
[BlackElo "2373"]
[Annotator "ChessBase"]
[PlyCount "20"]
[EventDate "2020.09.19"]
[EventType "swiss"]
[EventCountry "GER"]
[SourceTitle "playchess.com"]
[Source "ChessBase"]
[SourceQuality "1"]
[TimeControl "900+10"]

1. d4 {[%emt 0:00:00]} Nf6 {[%emt 0:00:00]} 2. c4 {[%emt 0:00:00]} e6 {[%emt 0:00:00]} 3. Nf3 {[%emt 0:00:00]} b6 {[%emt 0:00:00]} 4. g3 {[%emt 0:00:01]} Bb7 {[%emt 0:00:00]} 5. Bg2 {[%emt 0:00:03]} Be7 {[%emt 0:00:00]} 6. O-O {[%emt 0:00:04]} O-O {[%emt 0:00:03]} 7. Nc3 {[%emt 0:00:03]} Ne4 {[%emt 0:00:03]} 8. Nxe4 {[%emt 0:00:03]} Bxe4 {[%emt 0:00:01]} 9. Nh4 {[%emt 0:00:03]} Bxg2 {[%emt 0:00:04]} 10. Nxg2 {[%emt 0:00:02]} d5 {[%emt 0:00:17]} 1/2-1/2

[Event "46th GER-ch Rapid 2020"]
[Site "Plochingen"]
[Date "2020.09.20"]
[Round "9.1"]
[White "Neukirchner, Pascal"]
[Black "Hirneise, Jens"]
[Result "1/2-1/2"]
[ECO "A59"]
[WhiteElo "2259"]
[BlackElo "2289"]
[Annotator "ChessBase"]
[PlyCount "34"]
[EventDate "2020.09.19"]
[EventType "swiss"]
[EventCountry "GER"]
[SourceTitle "playchess.com"]
[Source "ChessBase"]
[SourceQuality "1"]
[TimeControl "900+10"]

1. d4 {[%emt 0:00:00]} Nf6 {[%emt 0:00:00]} 2. c4 {[%emt 0:00:00]} c5 {[%emt 0:00:00]} 3. d5 {[%emt 0:00:00]} b5 {[%emt 0:00:00]} 4. cxb5 {[%emt 0:00:00]} a6 {[%emt 0:00:00]} 5. bxa6 {[%emt 0:00:04]} g6 {[%emt 0:00:03]} 6. Nc3 {[%emt 0:00:02]} Bxa6 {[%emt 0:00:23]} 7. e4 {[%emt 0:00:04]} Bxf1 {[%emt 0:00:06]} 8. Kxf1 {[%emt 0:00:01]} d6 {[%emt 0:00:03]} 9. Nf3 {[%emt 0:00:02]} Bg7 {[%emt 0:00:04]} 10. g3 {[%emt 0:00:02]} O-O {[%emt 0:00:08]} 11. Kg2 {[%emt 0:00:01]} Qb6 {[%emt 0:00:05]} 12. Qe2 {[%emt 0:01:09]} Qa6 {[%emt 0:00:02]} 13. Nb5 {[%emt 0:02:47]} Ne8 {[%emt 0:02:03]} 14. Re1 {[%emt 0:01:00]} Qb7 {[%emt 0:00:52]} 15. Bd2 {[%emt 0:01:22]} Na6 {[%emt 0:00:48]} 16. Bc3 {[%emt 0:00:04]} Nf6 {[%emt 0:00:22]} 17. Nd2 {[%emt 0:01:24]} Rfb8 {[%emt 0:01:21]} 1/2-1/2

[Event "46th GER-ch Rapid 2020"]
[Site "Plochingen"]
[Date "2020.09.20"]
[Round "9.2"]
[White "Dobrikov, Marco"]
[Black "Rosner, Jonas"]
[Result "1/2-1/2"]
[ECO "B11"]
[WhiteElo "2332"]
[BlackElo "2433"]
[Annotator "ChessBase"]
[PlyCount "141"]
[EventDate "2020.09.19"]
[EventType "swiss"]
[EventCountry "GER"]
[SourceTitle "playchess.com"]
[Source "ChessBase"]
[SourceQuality "1"]
[TimeControl "900+10"]

1. e4 {[%emt 0:00:00]} c6 {[%emt 0:00:00]} 2. Nc3 {[%emt 0:00:00]} d5 {[%emt 0:00:00]} 3. Nf3 {[%emt 0:00:00]} dxe4 {[%emt 0:00:00]} 4. Nxe4 {[%emt 0:00:00]} Nf6 {[%emt 0:00:11]} 5. Nxf6+ {[%emt 0:00:00]} exf6 {[%emt 0:00:03]} 6. Bc4 {[%emt 0:00:00]} Bd6 {[%emt 0:00:10]} 7. Qe2+ {[%emt 0:00:00]} Qe7 {[%emt 0:00:17]} 8. Qxe7+ {[%emt 0:00:01]} Kxe7 {[%emt 0:00:20]} 9. O-O {[%emt 0:00:01]} Rd8 {[%emt 0:00:23]} 10. Re1+ {[%emt 0:00:05]} Kf8 {[%emt 0:00:03]} 11. d4 {[%emt 0:01:09]} Na6 {[%emt 0:01:28]} 12. Bxa6 {[%emt 0:01:02]} bxa6 {[%emt 0:00:02]} 13. Bd2 {[%emt 0:02:05]} Be6 {[%emt 0:00:56]} 14. b3 {[%emt 0:00:30]} g5 {[%emt 0:01:24]} 15. c4 {[%emt 0:00:53]} Kg7 {[%emt 0:02:10]} 16. Bc3 {[%emt 0:00:02]} Kg6 {[%emt 0:00:15]} 17. Nd2 {[%emt 0:00:51]} Rd7 {[%emt 0:01:37]} 18. Ne4 {[%emt 0:01:47]} Be7 {[%emt 0:00:12]} 19. Rad1 {[%emt 0:00:22]} h5 {[%emt 0:00:49]} 20. Ba5 {[%emt 0:01:49]} h4 {[%emt 0:00:52]} 21. Nc3 {[%emt 0:01:01]} Bd8 {[%emt 0:02:07]} 22. Bxd8 {[%emt 0:01:09]} Raxd8 {[%emt 0:00:02]} 23. Ne2 {[%emt 0:00:02]} a5 {[%emt 0:00:58]} 24. f3 {[%emt 0:00:32]} a4 {[%emt 0:00:17]} 25. Rd3 {[%emt 0:00:28]} a5 {[%emt 0:00:34]} 26. Red1 {[%emt 0:00:18]} axb3 {[%emt 0:00:12]} 27. axb3 {[%emt 0:00:02]} a4 {[%emt 0:00:01]} 28. d5 {[%emt 0:01:48]} cxd5 {[%emt 0:00:36]} 29. cxd5 {[%emt 0:00:06]} axb3 {[%emt 0:01:11]} 30. Rxb3 {[%emt 0:00:24]} Rxd5 {[%emt 0:00:10]} 31. Rxd5 {[%emt 0:00:15]} Rxd5 {[%emt 0:00:01]} 32. Kf2 {[%emt 0:01:10]} h3 {[%emt 0:00:59]} 33. gxh3 {[%emt 0:00:26]} Bxh3 {[%emt 0:00:44]} 34. Rb2 {[%emt 0:00:49]} Be6 {[%emt 0:00:13]} 35. h4 {[%emt 0:00:24]} Rd3 {[%emt 0:00:19]} 36. hxg5 {[%emt 0:00:21]} fxg5 {[%emt 0:00:02]} 37. Rb6 {[%emt 0:00:03]} Kg7 {[%emt 0:00:29]} 38. Rb4 {[%emt 0:00:34]} Bd5 {[%emt 0:00:37]} 39. Nd4 {[%emt 0:00:18]} Kg6 {[%emt 0:00:08]} 40. Rb6+ {[%emt 0:00:04]} f6 {[%emt 0:00:08]} 41. Rb4 {[%emt 0:00:01]} Kh5 {[%emt 0:00:29]} 42. Ra4 {[%emt 0:00:02]} Kg6 {[%emt 0:00:10]} 43. Rb4 {[%emt 0:00:01]} Ra3 {[%emt 0:00:04]} 44. Rb5 {[%emt 0:00:09]} Ba8 {[%emt 0:00:07]} 45. Rb8 {[%emt 0:00:12]} Ra2+ {[%emt 0:00:12]} 46. Kg3 {[%emt 0:00:05]} Ra1 {[%emt 0:00:15]} 47. Kf2 {[%emt 0:00:17]} Bd5 {[%emt 0:00:03]} 48. Rd8 {[%emt 0:00:03]} Bc4 {[%emt 0:00:07]} 49. Rc8 {[%emt 0:00:05]} Bd3 {[%emt 0:00:06]} 50. Rc3 {[%emt 0:00:09]} Ba6 {[%emt 0:00:22]} 51. Rc6 {[%emt 0:00:07]} Bb7 {[%emt 0:00:06]} 52. Rb6 {[%emt 0:00:02]} Bc8 {[%emt 0:00:05]} 53. Rc6 {[%emt 0:00:04]} Bh3 {[%emt 0:00:08]} 54. Kg3 {[%emt 0:00:10]} Bd7 {[%emt 0:00:09]} 55. Rd6 {[%emt 0:00:05]} Ra7 {[%emt 0:00:16]} 56. Rb6 {[%emt 0:00:08]} Kf7 {[%emt 0:00:05]} 57. Rd6 {[%emt 0:00:08]} Ke7 {[%emt 0:00:11]} 58. Rb6 {[%emt 0:00:01]} Ra4 {[%emt 0:00:08]} 59. Ne2 {[%emt 0:00:23]} Be6 {[%emt 0:00:27]} 60. Nc3 {[%emt 0:00:07]} Ra3 {[%emt 0:00:15]} 61. Rb7+ {[%emt 0:00:09]} Kf8 {[%emt 0:00:10]} 62. Rc7 {[%emt 0:00:12]} Rb3 {[%emt 0:00:09]} 63. Kf2 {[%emt 0:00:07]} f5 {[%emt 0:00:05]} 64. Ke3 {[%emt 0:00:57]} Bf7 {[%emt 0:00:12]} 65. Kd4 {[%emt 0:00:09]} g4 {[%emt 0:00:12]} 66. fxg4 {[%emt 0:00:10]} fxg4 {[%emt 0:00:01]} 67. Ke3 {[%emt 0:00:02]} Kg7 {[%emt 0:00:14]} 68. Kf4 {[%emt 0:00:03]} Rb4+ {[%emt 0:00:06]} 69. Kg3 {[%emt 0:00:03]} Rc4 {[%emt 0:00:10]} 70. Rxc4 {[%emt 0:00:03]} Bxc4 71. Kxg4 {[%emt 0:00:01]} 1/2-1/2

[Event "46th GER-ch Rapid 2020"]
[Site "Plochingen"]
[Date "2020.09.20"]
[Round "9.3"]
[White "Siebrecht, Sebastian"]
[Black "Kvetny, Mark"]
[Result "1/2-1/2"]
[ECO "A54"]
[WhiteElo "2418"]
[BlackElo "2427"]
[Annotator "ChessBase"]
[PlyCount "100"]
[EventDate "2020.09.19"]
[EventType "swiss"]
[EventCountry "GER"]
[SourceTitle "playchess.com"]
[Source "ChessBase"]
[SourceQuality "1"]
[TimeControl "900+10"]

1. d4 {[%emt 0:00:00]} Nf6 {[%emt 0:00:00]} 2. c4 {[%emt 0:00:00]} d6 {[%emt 0:00:00]} 3. Nc3 {[%emt 0:00:00]} Nbd7 {[%emt 0:00:02]} 4. Nf3 {[%emt 0:00:11]} e5 {[%emt 0:00:02]} 5. g3 {[%emt 0:00:17]} c6 {[%emt 0:00:12]} 6. Bg2 {[%emt 0:00:03]} Be7 {[%emt 0:00:06]} 7. O-O {[%emt 0:00:04]} O-O {[%emt 0:00:03]} 8. Re1 {[%emt 0:00:09]} a6 {[%emt 0:00:06]} 9. Nh4 {[%emt 0:00:49]} exd4 {[%emt 0:00:52]} 10. Qxd4 {[%emt 0:00:02]} Nc5 {[%emt 0:00:03]} 11. b4 {[%emt 0:00:42]} Ne6 {[%emt 0:00:13]} 12. Qd2 {[%emt 0:00:51]} g6 {[%emt 0:01:17]} 13. Bb2 {[%emt 0:00:03]} a5 {[%emt 0:00:03]} 14. a3 {[%emt 0:00:08]} Ng4 {[%emt 0:01:36]} 15. Nf3 {[%emt 0:00:48]} f5 {[%emt 0:00:35]} 16. e3 {[%emt 0:02:01]} Ne5 {[%emt 0:01:17]} 17. Qe2 {[%emt 0:00:27]} Bf6 {[%emt 0:00:10]} 18. Rad1 {[%emt 0:01:04]} Qe7 {[%emt 0:00:14]} 19. Nd4 {[%emt 0:01:21]} axb4 {[%emt 0:00:54]} 20. axb4 {[%emt 0:00:01]} Qf7 {[%emt 0:00:04]} 21. f4 {[%emt 0:01:23]} Nxd4 {[%emt 0:02:12]} 22. Rxd4 {[%emt 0:00:02]} Ng4 {[%emt 0:00:02]} 23. Rxd6 {[%emt 0:00:17]} Be7 {[%emt 0:00:03]} 24. c5 {[%emt 0:01:38]} Bxd6 {[%emt 0:01:27]} 25. cxd6 {[%emt 0:00:01]} Qe6 {[%emt 0:00:29]} 26. Qd2 {[%emt 0:00:03]} Rd8 {[%emt 0:00:47]} 27. Nd5 {[%emt 0:00:28]} Ra2 {[%emt 0:00:04]} 28. Ne7+ {[%emt 0:01:10]} Kf7 {[%emt 0:00:26]} 29. Nxc8 {[%emt 0:00:30]} Rxc8 {[%emt 0:00:13]} 30. e4 {[%emt 0:02:16]} Qb3 {[%emt 0:04:07]} 31. Re2 fxe4 {[%emt 0:00:57]} 32. Bxe4 {[%emt 0:01:13]} Rxb2 {[%emt 0:01:13]} 33. Qxb2 {[%emt 0:00:20]} Qd1+ {[%emt 0:00:01]} 34. Kg2 {[%emt 0:00:08]} Qxd6 {[%emt 0:00:02]} 35. Qb3+ {[%emt 0:00:38]} Kg7 {[%emt 0:00:06]} 36. Qc3+ {[%emt 0:00:02]} Nf6 {[%emt 0:00:21]} 37. b5 {[%emt 0:00:47]} Re8 {[%emt 0:00:28]} 38. bxc6 {[%emt 0:00:25]} bxc6 {[%emt 0:00:10]} 39. Rd2 {[%emt 0:00:10]} Qe6 {[%emt 0:00:10]} 40. Bf3 {[%emt 0:00:10]} Rc8 {[%emt 0:00:10]} 41. Qc5 {[%emt 0:00:10]} Rc7 {[%emt 0:00:10]} 42. Rd6 {[%emt 0:00:10]} Qa2+ {[%emt 0:00:10]} 43. Kh3 {[%emt 0:00:10]} Qf7 {[%emt 0:00:10]} 44. Bxc6 {[%emt 0:00:10]} Qe7 {[%emt 0:00:10]} 45. Qd4 {[%emt 0:00:10]} h5 {[%emt 0:00:10]} 46. Ba4 {[%emt 0:00:10]} Rc4 {[%emt 0:00:10]} 47. Qxc4 {[%emt 0:00:10]} Qxd6 {[%emt 0:00:10]} 48. Bb3 {[%emt 0:00:10]} Qd7+ {[%emt 0:00:10]} 49. Kg2 {[%emt 0:00:10]} Qd2+ {[%emt 0:00:10]} 50. Kf3 {[%emt 0:00:10]} Qd7 {[%emt 0:00:10]} 1/2-1/2

[Event "46th GER-ch Rapid 2020"]
[Site "Plochingen"]
[Date "2020.09.20"]
[Round "9.4"]
[White "Braeuning, Rudolf Wilhelm"]
[Black "Stern, Rene"]
[Result "0-1"]
[ECO "C01"]
[WhiteElo "2268"]
[BlackElo "2517"]
[Annotator "ChessBase"]
[PlyCount "94"]
[EventDate "2020.09.19"]
[EventType "swiss"]
[EventCountry "GER"]
[SourceTitle "playchess.com"]
[Source "ChessBase"]
[SourceQuality "1"]
[TimeControl "900+10"]

1. c4 {[%emt 0:00:00]} e6 {[%emt 0:00:00]} 2. e4 {[%emt 0:00:30]} d5 {[%emt 0:00:00]} 3. exd5 {[%emt 0:00:08]} exd5 {[%emt 0:00:00]} 4. d4 {[%emt 0:00:02]} Nf6 {[%emt 0:00:03]} 5. Nc3 {[%emt 0:00:12]} Be7 {[%emt 0:00:02]} 6. Bg5 {[%emt 0:00:54]} c6 {[%emt 0:00:41]} 7. Nf3 {[%emt 0:00:31]} O-O {[%emt 0:00:03]} 8. Be2 {[%emt 0:04:49]} dxc4 {[%emt 0:00:09]} 9. Bxc4 {[%emt 0:00:30]} Nbd7 {[%emt 0:00:06]} 10. h3 {[%emt 0:00:21]} Nb6 {[%emt 0:00:02]} 11. Bb3 {[%emt 0:00:02]} Nbd5 {[%emt 0:00:37]} 12. O-O {[%emt 0:00:12]} Be6 {[%emt 0:00:03]} 13. Re1 {[%emt 0:00:08]} h6 {[%emt 0:02:08]} 14. Bh4 {[%emt 0:00:43]} Rc8 {[%emt 0:02:53]} 15. Ne5 {[%emt 0:00:40]} Re8 {[%emt 0:00:22]} 16. Qf3 {[%emt 0:02:31]} Nc7 {[%emt 0:01:48]} 17. Ng6 {[%emt 0:04:10]} Bxb3 {[%emt 0:01:04]} 18. Nxe7+ {[%emt 0:00:16]} Rxe7 {[%emt 0:00:02]} 19. Rxe7 {[%emt 0:00:17]} Qxe7 {[%emt 0:01:06]} 20. axb3 {[%emt 0:00:02]} a6 {[%emt 0:01:39]} 21. Bxf6 {[%emt 0:00:02]} Qxf6 {[%emt 0:00:01]} 22. Qxf6 {[%emt 0:00:02]} gxf6 {[%emt 0:00:01]} 23. Ne4 {[%emt 0:00:01]} Kg7 {[%emt 0:01:48]} 24. Nd6 {[%emt 0:00:17]} Rd8 {[%emt 0:00:45]} 25. Nxb7 {[%emt 0:00:40]} Rxd4 {[%emt 0:00:02]} 26. Nc5 {[%emt 0:00:03]} Rd2 {[%emt 0:01:02]} 27. Nxa6 {[%emt 0:00:06]} Ne6 {[%emt 0:00:01]} 28. Rb1 {[%emt 0:00:17]} Nf4 {[%emt 0:00:53]} 29. b4 {[%emt 0:00:17]} Nd3 {[%emt 0:00:07]} 30. Nb8 {[%emt 0:00:39]} Nxb4 {[%emt 0:00:10]} 31. Rc1 {[%emt 0:00:30]} Rd8 {[%emt 0:00:06]} 32. Nxc6 {[%emt 0:00:12]} Rc8 {[%emt 0:00:01]} 33. Rc4 {[%emt 0:00:06]} Nxc6 {[%emt 0:00:01]} 34. b4 {[%emt 0:00:03]} Na7 {[%emt 0:00:12]} 35. Rxc8 {[%emt 0:00:24]} Nxc8 {[%emt 0:00:01]} 36. Kh2 {[%emt 0:00:03]} Nd6 {[%emt 0:00:09]} 37. Kg3 {[%emt 0:00:04]} f5 {[%emt 0:00:04]} 38. Kf4 {[%emt 0:00:08]} Kf6 {[%emt 0:00:02]} 39. h4 {[%emt 0:00:27]} Nb5 {[%emt 0:00:26]} 40. f3 {[%emt 0:00:07]} Nc7 {[%emt 0:00:03]} 41. Kg3 {[%emt 0:00:06]} Ke5 {[%emt 0:00:05]} 42. h5 {[%emt 0:00:05]} f4+ {[%emt 0:00:12]} 43. Kg4 {[%emt 0:00:02]} f5+ {[%emt 0:00:04]} 44. Kh3 {[%emt 0:00:07]} Kd4 {[%emt 0:00:04]} 45. g4 {[%emt 0:00:04]} fxg3 {[%emt 0:00:06]} 46. Kxg3 {[%emt 0:00:01]} Ke3 {[%emt 0:00:02]} 47. Kg2 {[%emt 0:00:23]} f4 {[%emt 0:00:11]} 0-1